bitfinex/quotes_BTCUSD_20220120
["timestamp","ask_amount","ask_price","bid_price","bid_amount"]
[1642686521083,0.0862309,42494.0,42492.0,0.034405]
[1642686521277,0.0862309,42494.0,42492.0,0.050435]
[1642686521493,0.0862309,42494.0,42492.0,0.01603]
[1642686522076,0.0999,42493.0,42492.0,0.01603]
[1642686522276,0.1472,42493.0,42492.0,0.01603]
[1642686522478,0.2334309,42493.0,42492.0,0.01603]
[1642686523475,0.2234309,42493.0,42492.0,0.01603]
[1642686524480,0.80122539,42494.0,42493.0,0.85]
[1642686524739,0.80122539,42494.0,42493.0,0.85120973]
[1642686524740,0.80212539,42494.0,42493.0,0.85120973]
[1642686524935,0.8059936,42495.0,42494.0,0.95]
[1642686525137,0.80639861,42495.0,42494.0,0.6]
[1642686525337,0.80639861,42495.0,42494.0,0.61603]
[1642686525538,0.012,42499.0,42495.0,0.83540908]
[1642686525745,0.012,42499.0,42498.0,0.53215598]
[1642686526141,0.012,42499.0,42498.0,0.25715587]
[1642686526340,0.012,42499.0,42498.0,0.27318587]
[1642686526341,0.011,42499.0,42498.0,0.27318587]
[1642686528142,0.011,42499.0,42498.0,0.01603]
[1642686528398,1.19295126,42500.0,42498.0,0.01603]
[1642686528600,1.19295126,42500.0,42499.0,0.01603]
[1642686528999,1.19295126,42500.0,42497.0,0.03631266]
[1642686529000,2.19443281,42500.0,42497.0,0.03631266]
[1642686529199,2.19443281,42500.0,42499.0,0.01603]
[1642686529404,2.24819967,42500.0,42499.0,0.01603]
[1642686529600,2.14819967,42500.0,42499.0,0.01603]
[1642686529802,1.37186552,42500.0,42499.0,0.01603]
[1642686530002,1.18785126,42500.0,42499.0,0.01603]
[1642686531103,1.37186552,42500.0,42499.0,0.01603]
[1642686531303,1.18785126,42500.0,42499.0,0.01603]
[1642686533426,1.37186552,42500.0,42499.0,0.01603]
[1642686533628,1.18785126,42500.0,42499.0,0.01603]
[1642686534032,1.28785126,42500.0,42495.0,0.01603]
[1642686534229,0.0999,42498.0,42495.0,0.01603]
[1642686534434,0.106174,42497.0,42495.0,0.01603]
[1642686534631,0.0473,42497.0,42495.0,0.01603]
[1642686534829,0.0999,42496.0,42495.0,0.01603]
[1642686535028,0.1472,42496.0,42495.0,0.01603]
[1642686536078,0.1582,42496.0,42495.0,0.01603]
[1642686536480,0.1109,42496.0,42495.0,0.01603]
[1642686536677,0.011,42496.0,42495.0,0.01603]
[1642686537176,0.00040269,42498.0,42495.0,0.01603]
[1642686537377,0.00040269,42498.0,42497.0,0.01603]
[1642686537778,0.00047145,42498.0,42497.0,0.01603]
[1642686537975,0.01306876,42498.0,42497.0,0.01603]
[1642686539178,0.91454717,42498.0,42497.0,0.01442701]
[1642686539380,0.01306876,42498.0,42497.0,0.01442701]
[1642686539635,0.20406931,42498.0,42497.0,0.01442701]
[1642686540033,0.21606931,42498.0,42497.0,0.01442701]
[1642686540234,0.21606931,42498.0,42490.0,0.36231342]
[1642686540235,0.20306931,42498.0,42490.0,0.01442701]
[1642686540432,0.90178895,42494.0,42490.0,0.01442701]
[1642686540631,0.90178895,42493.0,42490.0,0.01442701]
[1642686540832,0.14279531,42492.0,42490.0,0.01442701]
[1642686541032,0.23379586,42492.0,42490.0,0.01442701]
[1642686541436,0.23379586,42492.0,42485.0,0.39324]
[1642686541437,0.09100055,42491.0,42485.0,0.39324]
[1642686541633,0.9927895,42491.0,42488.0,0.01603]
[1642686541833,0.0473,42490.0,42488.0,0.01603]
[1642686542031,0.13830055,42490.0,42488.0,0.01603]
[1642686542236,0.00122997,42489.0,42488.0,0.01603]
[1642686542432,0.13953052,42489.0,42488.0,0.01603]
[1642686542632,0.13953052,42489.0,42488.0,0.71613314]
[1642686544077,0.15153052,42489.0,42488.0,0.71613314]
[1642686544277,0.14530055,42489.0,42488.0,0.01613314]
[1642686545077,0.14530055,42489.0,42488.0,1.06613314]
[1642686545383,0.93488412,42489.0,42488.0,1.06613314]
[1642686545776,0.93488412,42489.0,42488.0,0.01613314]
[1642686545979,0.94288412,42489.0,42488.0,0.01613314]
[1642686546179,0.94288412,42489.0,42488.0,0.41613314]
[1642686546781,0.09900055,42489.0,42488.0,0.65078192]
[1642686546981,0.008,42489.0,42488.0,1.60078192]
[1642686547230,0.10178222,42489.0,42488.0,1.60078192]
[1642686547631,0.29581639,42491.0,42490.0,0.01603]
[1642686547837,0.10178222,42491.0,42490.0,0.01442701]
[1642686548034,0.10178222,42491.0,42490.0,0.01449577]
[1642686549031,0.10178222,42491.0,42490.0,0.41449577]
[1642686549433,0.20178222,42492.0,42490.0,0.41449577]
[1642686549633,0.10178222,42491.0,42490.0,0.41449577]
[1642686550044,0.10178222,42491.0,42490.0,0.01449577]
[1642686551881,0.22994169,42492.0,42490.0,0.01449577]
[1642686552085,0.11578222,42491.0,42490.0,0.01449577]
[1642686553382,0.11078222,42491.0,42490.0,0.01449577]
[1642686553885,0.11078222,42491.0,42490.0,0.25857266]
[1642686554085,0.92540721,42491.0,42490.0,0.55857266]
[1642686554283,0.12378222,42491.0,42490.0,0.55857266]
[1642686554484,0.22378222,42491.0,42490.0,0.55857266]
[1642686555135,0.22478222,42491.0,42490.0,0.55857266]
[1642686555342,0.22478222,42491.0,42490.0,0.01449577]
[1642686555535,0.12478222,42491.0,42490.0,0.01449577]
[1642686555734,0.91740702,42491.0,42490.0,0.01449577]
[1642686555937,0.10278222,42491.0,42490.0,0.01449577]
[1642686556136,0.21378222,42491.0,42490.0,0.01449577]
[1642686556335,0.112,42491.0,42490.0,0.01449577]
[1642686556737,0.21378222,42491.0,42490.0,0.01449577]
[1642686557135,0.11378222,42491.0,42490.0,0.01449577]
[1642686557335,0.10278222,42491.0,42490.0,0.01449577]
[1642686557738,0.001,42491.0,42490.0,0.01449577]
[1642686557940,0.10278222,42491.0,42490.0,0.01449577]
[1642686558135,0.011,42491.0,42490.0,0.01449577]
[1642686558379,0.11278222,42491.0,42490.0,0.01449577]
[1642686558580,0.011,42491.0,42490.0,0.01449577]
[1642686558878,0.11278222,42491.0,42490.0,0.46449577]
[1642686559277,0.10278222,42491.0,42490.0,0.01449577]
[1642686559679,0.001,42491.0,42490.0,0.01449577]
[1642686559885,0.001,42491.0,42490.0,1.00764871]
[1642686560083,0.81265256,42491.0,42490.0,1.00764871]
[1642686560481,0.91443478,42491.0,42490.0,0.25764871]
[1642686560679,0.91443478,42491.0,42490.0,0.01449577]
[1642686560880,0.21278222,42491.0,42490.0,0.31449577]
[1642686561278,0.20278222,42491.0,42490.0,0.31449577]
[1642686561478,0.20278222,42491.0,42490.0,0.01449577]
[1642686561881,0.20278222,42491.0,42490.0,0.31449577]
[1642686562141,0.11078222,42491.0,42490.0,0.31449577]
[1642686563942,0.11078222,42491.0,42490.0,0.71449577]
[1642686564145,0.11878222,42491.0,42490.0,0.71449577]
[1642686565142,0.10278222,42491.0,42490.0,0.68115577]
[1642686565343,0.10278222,42491.0,42490.0,0.28115577]
[1642686565744,0.001,42491.0,42490.0,0.28115577]
[1642686565981,0.01,42491.0,42490.0,0.73115577]
[1642686566485,0.11178222,42491.0,42490.0,0.73115577]
[1642686566683,0.01,42491.0,42490.0,0.73115577]
[1642686566881,0.81168859,42491.0,42490.0,0.73115577]
[1642686567083,0.91347654,42491.0,42490.0,0.73115577]
[1642686567381,0.90447069,42491.0,42490.0,0.73115577]
[1642686567981,0.91447069,42491.0,42490.0,0.73115577]
[1642686569383,0.90447069,42491.0,42490.0,0.73115577]
[1642686569628,0.90447069,42491.0,42490.0,0.69915577]
[1642686570029,0.91447069,42491.0,42490.0,0.69915577]
[1642686570529,0.91447069,42491.0,42490.0,0.24915577]
[1642686570736,0.91447069,42491.0,42490.0,0.54915577]
[1642686571131,0.11278222,42491.0,42490.0,0.54915577]
[1642686571334,0.10278222,42491.0,42490.0,0.54915577]
[1642686571729,0.10278222,42491.0,42490.0,0.94915577]
[1642686572130,0.11278222,42491.0,42490.0,0.54915577]
[1642686573385,0.10278222,42491.0,42490.0,0.54915577]
[1642686574282,0.10978222,42491.0,42490.0,0.54915577]
[1642686574683,0.10978222,42491.0,42490.0,0.84915577]
[1642686575283,0.10278222,42491.0,42490.0,0.84915577]
[1642686575483,0.45084423,42490.0,42487.0,0.34651943]
[1642686576083,0.45584423,42490.0,42487.0,0.34651943]
[1642686577337,0.45084423,42490.0,42487.0,0.34651943]
[1642686578138,0.45884423,42490.0,42487.0,0.34651943]
[1642686578341,0.45884423,42490.0,42488.0,0.0473]
[1642686578648,0.45884423,42490.0,42489.0,1.9462017]
[1642686578839,0.45884423,42490.0,42489.0,1.680888]
[1642686579438,0.45084423,42490.0,42489.0,1.680888]
[1642686579840,0.45084423,42490.0,42489.0,0.380888]
[1642686580045,0.45884423,42490.0,42489.0,0.380888]
[1642686580242,0.45884423,42490.0,42488.0,0.108857]
[1642686580543,0.45884423,42490.0,42489.0,1.04049378]
[1642686580877,0.45884423,42490.0,42489.0,0.8]
[1642686581185,0.45884423,42490.0,42489.0,1.0373987]
[1642686581382,0.45084423,42490.0,42489.0,1.4182867]
[1642686581778,0.45084423,42490.0,42489.0,1.180888]
[1642686582177,0.45884423,42490.0,42489.0,1.180888]
[1642686583378,0.45084423,42490.0,42489.0,1.180888]
[1642686583582,0.001,42491.0,42489.0,1.742788]
[1642686583784,0.001,42491.0,42490.0,1.96041796]
[1642686583979,0.80209107,42497.0,42492.0,0.05885023]
[1642686583980,0.0004026,42497.0,42492.0,0.05885023]
[1642686584178,0.0004026,42497.0,42493.0,0.26569485]
[1642686584179,0.06135559,42496.0,42493.0,0.26569485]
[1642686584380,0.06145873,42496.0,42494.0,0.20642672]
[1642686584646,0.06135559,42496.0,42495.0,0.61284193]
[1642686584845,0.06135559,42496.0,42494.0,0.25642672]
[1642686585047,0.06135559,42495.0,42494.0,0.37413572]
[1642686585545,0.06135559,42495.0,42494.0,0.92413572]
[1642686586147,0.07135559,42495.0,42494.0,0.92413572]
[1642686586350,0.07135559,42495.0,42494.0,0.37413572]
[1642686586545,0.17516461,42495.0,42494.0,0.20642672]
[1642686586745,0.07135559,42495.0,42494.0,0.20642672]
[1642686587047,0.07135559,42495.0,42494.0,0.25642672]
[1642686587048,0.17516461,42495.0,42494.0,0.25642672]
[1642686587445,0.07135559,42495.0,42494.0,0.25642672]
[1642686587645,0.07135559,42495.0,42494.0,0.75642672]
[1642686588045,0.07135559,42495.0,42494.0,0.25642672]
[1642686588046,0.08135559,42495.0,42494.0,0.25642672]
[1642686588248,0.07135559,42495.0,42494.0,0.25642672]
[1642686588692,0.07135559,42495.0,42494.0,0.60642672]
[1642686589292,0.06135559,42495.0,42494.0,0.60642672]
[1642686589499,0.06135559,42495.0,42494.0,1.33520318]
[1642686589695,0.63983333,42495.0,42494.0,1.73883118]
[1642686589895,0.00128615,42501.0,42496.0,0.85]
[1642686590095,0.00128615,42501.0,42497.0,0.058847]
[1642686590597,0.00128615,42501.0,42498.0,0.47553728]
[1642686590996,0.00128615,42501.0,42498.0,0.53438528]
[1642686591196,0.00128615,42501.0,42499.0,0.00122166]
[1642686591595,1.08802002,42500.0,42499.0,0.00122166]
[1642686591998,1.19314084,42500.0,42499.0,0.00122166]
[1642686592242,1.09702002,42500.0,42499.0,0.41322166]
[1642686592442,1.09702002,42500.0,42499.0,0.46322166]
[1642686593444,1.08802002,42500.0,42499.0,0.45]
[1642686593645,1.08802002,42500.0,42499.0,1.1]
[1642686594048,1.08802002,42500.0,42499.0,0.45]
[1642686594245,1.08802002,42500.0,42499.0,0.465]
[1642686594546,0.41342197,42495.0,42494.0,0.20642672]
[1642686594847,0.41342197,42495.0,42493.0,0.42132682]
[1642686594848,0.41342197,42495.0,42492.0,0.558853]
[1642686595044,0.60088319,42493.0,42492.0,0.558853]
[1642686595246,0.41342197,42495.0,42492.0,0.558853]
[1642686595446,0.41342197,42495.0,42492.0,0.50006876]
[1642686595649,0.60087656,42493.0,42492.0,0.92780294]
[1642686595885,0.60087656,42493.0,42492.0,1.52288383]
[1642686596085,3.28523665,42493.0,42492.0,1.52288383]
[1642686596289,2.68436009,42493.0,42492.0,1.19199583]
[1642686596484,3.28523515,42493.0,42492.0,1.69199583]
[1642686596690,3.28523515,42493.0,42492.0,1.20389583]
[1642686597086,0.60087506,42493.0,42492.0,1.20389583]
[1642686597290,1.01429703,42495.0,42492.0,1.20389583]
[1642686597485,0.60087506,42494.0,42492.0,1.20389583]
[1642686598088,2.56426125,42494.0,42492.0,1.22789583]
[1642686598388,2.56426125,42494.0,42492.0,1.72789583]
[1642686598590,1.08802002,42500.0,42492.0,1.72789583]
[1642686598591,0.39514662,42502.0,42493.0,1.680888]
[1642686598789,0.26922677,42505.0,42493.0,1.30012033]
[1642686598993,0.26922677,42505.0,42493.0,0.89973314]
[1642686599198,0.11443494,42506.0,42493.0,1.15210827]
[1642686599391,0.00013752,42502.0,42493.0,1.15173827]
[1642686599631,0.00013752,42502.0,42501.0,0.35941722]
[1642686599831,0.001,42504.0,42501.0,0.35941722]
[1642686600034,0.001,42504.0,42501.0,0.35904722]
[1642686600233,0.011,42502.0,42501.0,0.00736]
[1642686601131,0.011,42502.0,42501.0,0.21804085]
[1642686601333,0.011,42502.0,42501.0,0.21068085]
[1642686601531,0.001,42504.0,42501.0,0.21068085]
[1642686602133,0.018,42503.0,42501.0,0.21868085]
[1642686603034,0.018,42503.0,42501.0,0.008]
[1642686603490,0.002,42503.0,42496.0,0.19010523]
[1642686603690,0.002,42503.0,42494.0,1.18630409]
[1642686603892,0.002,42503.0,42496.0,0.34924064]
[1642686604092,0.00039808,42502.0,42496.0,0.36224064]
[1642686604491,0.00012033,42501.0,42496.0,0.66251192]
[1642686604692,0.00012033,42501.0,42496.0,0.61677469]
[1642686604908,0.00010314,42500.0,42496.0,0.66677469]
[1642686605092,0.00010314,42500.0,42497.0,0.380888]
[1642686605292,0.09286461,42501.0,42497.0,0.380888]
[1642686605293,8.595e-05,42499.0,42497.0,0.380888]
[1642686605491,8.595e-05,42499.0,42496.0,0.063]
[1642686605492,0.7010069,42499.0,42496.0,0.063]
[1642686605692,0.70098971,42498.0,42496.0,0.063]
[1642686605893,6.876e-05,42498.0,42496.0,0.063]
[1642686606093,6.876e-05,42498.0,42497.0,1.280888]
[1642686606294,6.876e-05,42498.0,42497.0,0.380888]
[1642686606496,0.00808105,42496.0,42495.0,0.71058925]
[1642686606693,0.00808105,42496.0,42495.0,1.09147725]
[1642686607136,0.09630144,42496.0,42495.0,0.5]
[1642686607337,0.70905918,42496.0,42495.0,1.04]
[1642686607538,0.09653975,42496.0,42495.0,0.74]
[1642686607946,0.09653975,42496.0,42491.0,0.0002]
[1642686607947,0.9,42495.0,42491.0,0.0002]
[1642686608140,0.00125295,42492.0,42491.0,0.0002]
[1642686608337,1.13701165,42492.0,42491.0,0.0002]
[1642686608539,1.49787687,42492.0,42491.0,0.0002]
[1642686608936,1.74945573,42492.0,42491.0,0.0002]
[1642686609137,1.45964583,42492.0,42491.0,0.0002]
[1642686609337,1.60964583,42492.0,42491.0,0.0002]
[1642686609540,0.66956538,42492.0,42491.0,0.0002]
[1642686609737,1.47087048,42492.0,42490.0,0.10584]
[1642686609935,0.0884587,42491.0,42490.0,0.10584]
[1642686610137,0.1357587,42491.0,42490.0,0.10584]
[1642686610340,0.24776278,42491.0,42490.0,0.10090876]
[1642686610536,0.24776278,42491.0,42490.0,0.09090876]
[1642686612195,0.25876278,42491.0,42490.0,0.09090876]
[1642686613387,0.89776278,42491.0,42490.0,0.09090876]
[1642686613588,0.24776278,42491.0,42490.0,0.09090876]
[1642686613789,0.34776278,42491.0,42490.0,0.09090876]
[1642686613991,1.14906788,42491.0,42490.0,0.09090876]
[1642686614187,0.27210351,42491.0,42490.0,0.09090876]
[1642686614838,0.17210351,42491.0,42490.0,0.09090876]
[1642686615534,0.16010351,42491.0,42490.0,0.09090876]
[1642686615836,0.11280351,42491.0,42490.0,0.09090876]
[1642686616037,0.11280351,42491.0,42490.0,0.35398496]
[1642686616233,0.009,42491.0,42490.0,0.59490876]
[1642686616834,0.009,42491.0,42490.0,0.97567612]
[1642686617340,0.34567138,42493.0,42490.0,0.47167612]
[1642686617736,0.11327326,42492.0,42491.0,0.27875732]
[1642686617937,0.11327326,42492.0,42491.0,0.8891379]
[1642686618396,0.11327326,42492.0,42491.0,0.65]
[1642686618998,0.11327326,42492.0,42490.0,0.50267612]
[1642686619199,0.11327326,42492.0,42490.0,0.12190876]
[1642686619905,0.11327326,42492.0,42490.0,0.09090876]
[1642686620197,0.11827326,42492.0,42490.0,0.09090876]
[1642686620599,0.11327326,42491.0,42490.0,0.09090876]
[1642686621897,0.11327326,42492.0,42490.0,0.09090876]
[1642686622138,0.008,42491.0,42490.0,0.39090876]
[1642686622541,0.12127326,42491.0,42490.0,0.39090876]
[1642686623338,0.11327326,42491.0,42490.0,0.39090876]
[1642686623738,0.11327326,42492.0,42490.0,0.08090876]
[1642686623940,0.11327326,42491.0,42490.0,0.08090876]
[1642686624138,0.11627326,42491.0,42490.0,0.38090876]
[1642686624538,0.003,42491.0,42490.0,0.38090876]
[1642686624740,0.11627326,42491.0,42490.0,0.38090876]
[1642686624939,0.11627326,42491.0,42490.0,0.08090876]
[1642686625342,0.11327326,42491.0,42490.0,0.08090876]
[1642686625743,0.11327326,42492.0,42490.0,0.08090876]
[1642686626188,0.002,42491.0,42490.0,0.08090876]
[1642686626589,0.11527326,42491.0,42490.0,0.08090876]
[1642686626790,0.11527326,42491.0,42490.0,0.32090876]
[1642686626987,0.11527326,42491.0,42490.0,0.33280876]
[1642686627189,0.11527326,42491.0,42490.0,0.32090876]
[1642686627387,0.11327326,42491.0,42490.0,0.32090876]
[1642686627792,0.11327326,42492.0,42490.0,0.32090876]
[1642686627990,0.11327326,42491.0,42490.0,0.32090876]
[1642686628187,0.12127326,42491.0,42490.0,0.32090876]
[1642686628387,0.008,42491.0,42490.0,0.32090876]
[1642686628587,0.12127326,42491.0,42490.0,0.32090876]
[1642686629190,0.008,42491.0,42490.0,0.32090876]
[1642686629387,0.51913522,42493.0,42490.0,0.32090876]
[1642686629644,0.34567138,42493.0,42492.0,0.69128309]
[1642686629848,0.34567138,42493.0,42492.0,0.70318309]
[1642686630244,0.35067138,42493.0,42492.0,1.08407109]
[1642686630449,0.35067138,42493.0,42492.0,0.20318309]
[1642686630645,0.35067138,42493.0,42492.0,0.19128309]
[1642686631444,0.34567138,42493.0,42492.0,0.19128309]
[1642686631646,0.34567138,42493.0,42491.0,0.08088]
[1642686632044,0.34506638,42493.0,42491.0,0.08088]
[1642686632244,0.35606638,42493.0,42491.0,0.08088]
[1642686633148,0.73513365,42493.0,42491.0,0.08088]
[1642686633387,0.27111007,42492.0,42491.0,0.08088]
[1642686633592,0.93300565,42493.0,42491.0,0.08088]
[1642686633788,0.78300565,42493.0,42491.0,0.08088]
[1642686633989,0.0473,42492.0,42491.0,0.08088]
[1642686634387,0.09738467,42492.0,42491.0,0.04058078]
[1642686634587,0.0473,42492.0,42491.0,0.04058078]
[1642686634989,0.42790948,42492.0,42491.0,0.04058078]
[1642686635388,0.56713981,42492.0,42491.0,0.04058078]
[1642686635589,1.36844491,42492.0,42490.0,0.04058078]
[1642686635899,1.36844491,42492.0,42473.0,0.5813]
[1642686635900,0.058896,42478.0,42474.0,0.1246595]
[1642686636091,0.60111246,42478.0,42472.0,2.47652449]
[1642686636289,0.64841246,42479.0,42475.0,0.00025785]
[1642686636689,0.0473,42479.0,42475.0,0.00025785]
[1642686636888,0.0473,42479.0,42473.0,0.50027207]
[1642686637155,0.0473,42479.0,42472.0,2.6947162]
[1642686637156,2.50058023,42475.0,42472.0,2.6947162]
[1642686637360,2.50058023,42475.0,42473.0,0.37706464]
[1642686638155,2.51058023,42475.0,42473.0,0.37706464]
[1642686639566,2.50058023,42475.0,42473.0,0.37706464]
[1642686640157,2.50258023,42475.0,42474.0,1.0119]
[1642686641483,2.50058023,42475.0,42474.0,1.0119]
[1642686642096,2.50058023,42475.0,42474.0,0.0119]
[1642686642390,2.50458023,42475.0,42474.0,0.70087922]
[1642686643286,2.50458023,42475.0,42474.0,0.45]
[1642686643487,2.50058023,42475.0,42474.0,0.45]
[1642686643695,2.50058023,42475.0,42472.0,0.00120388]
[1642686644289,2.50858023,42475.0,42472.0,0.00120388]
[1642686644737,2.50858023,42475.0,42467.0,0.414365]
[1642686644738,2.50858023,42475.0,42474.0,0.4619]
[1642686645140,2.50858023,42475.0,42471.0,0.0131039]
[1642686645537,2.50058023,42475.0,42471.0,0.0131039]
[1642686645935,2.50058023,42475.0,42471.0,0.0119]
[1642686646133,2.50058023,42475.0,42471.0,0.01310391]
[1642686646340,0.18810943,42474.0,42473.0,0.24]
[1642686646536,0.18810943,42474.0,42473.0,0.23]
[1642686647036,0.35846485,42474.0,42473.0,0.12687445]
[1642686647236,0.95941571,42474.0,42473.0,0.12687445]
[1642686647434,0.95941571,42474.0,42471.0,0.0012039]
[1642686647636,0.60097553,42472.0,42471.0,0.0012039]
[1642686647837,0.05,42472.0,42471.0,0.0012039]
[1642686648035,0.60097553,42472.0,42471.0,0.0012039]
[1642686648238,0.60797553,42472.0,42471.0,0.0012039]
[1642686648492,0.60797553,42472.0,42464.0,0.27583434]
[1642686648493,0.60797553,42472.0,42469.0,0.00120394]
[1642686648694,0.007,42472.0,42469.0,0.00120394]
[1642686648898,0.007,42472.0,42470.0,6.876e-05]
[1642686649095,0.007,42472.0,42463.0,0.5573028]
[1642686649096,0.007,42472.0,42464.0,0.22806604]
[1642686649293,0.007,42472.0,42470.0,0.40834358]
[1642686649693,2.50058023,42475.0,42470.0,0.40834358]
[1642686649896,0.04856676,42476.0,42470.0,0.40834358]
[1642686649897,0.00126676,42476.0,42470.0,0.40834358]
[1642686650100,6.876e-05,42474.0,42471.0,0.21266848]
[1642686650297,0.00408595,42475.0,42471.0,0.21266848]
[1642686650494,0.004,42475.0,42471.0,0.21266848]
[1642686650696,6.876e-05,42474.0,42471.0,0.21266848]
[1642686650993,6.876e-05,42474.0,42471.0,0.43838462]
[1642686651294,6.876e-05,42474.0,42472.0,0.33426608]
[1642686651693,6.876e-05,42474.0,42471.0,0.43838462]
[1642686652336,0.00906876,42474.0,42471.0,0.45015462]
[1642686652737,0.00906876,42474.0,42473.0,0.86457525]
[1642686653541,0.60138735,42481.0,42473.0,2.28272053]
[1642686653742,0.60138735,42481.0,42474.0,0.380888]
[1642686653743,0.00041182,42481.0,42474.0,0.380888]
[1642686654045,8.595e-05,42479.0,42478.0,1.10080398]
[1642686654244,8.595e-05,42479.0,42478.0,0.25080398]
[1642686654641,8.595e-05,42479.0,42478.0,0.26257398]
[1642686655440,8.595e-05,42479.0,42478.0,0.01177]
[1642686655894,8.595e-05,42479.0,42478.0,0.56177]
[1642686656193,0.00608595,42479.0,42478.0,0.56177]
[1642686656994,0.00608595,42479.0,42478.0,0.01177]
[1642686657593,8.595e-05,42479.0,42478.0,0.01177]
[1642686657792,8.595e-05,42479.0,42478.0,0.86177]
[1642686657993,8.595e-05,42479.0,42478.0,0.91177]
[1642686658492,0.00608595,42479.0,42478.0,0.91177]
[1642686659633,8.595e-05,42479.0,42478.0,0.91177]
[1642686659836,8.595e-05,42479.0,42478.0,0.06177]
[1642686660038,8.595e-05,42479.0,42478.0,0.01177]
[1642686660236,0.00608595,42479.0,42478.0,0.01177]
[1642686660839,0.00608595,42479.0,42478.0,1.93989806]
[1642686661039,0.00608595,42479.0,42478.0,1.98989806]
[1642686661643,8.595e-05,42479.0,42478.0,2.19970181]
[1642686662038,8.595e-05,42479.0,42478.0,2.19470181]
[1642686662239,0.00608595,42479.0,42478.0,2.20770181]
[1642686662539,0.00608595,42479.0,42478.0,2.25500181]
[1642686663595,8.595e-05,42479.0,42478.0,2.24200181]
[1642686664295,0.00708595,42479.0,42478.0,2.25400181]
[1642686664891,0.0004119,42481.0,42479.0,1.3]
[1642686665093,0.60097553,42487.0,42480.0,1.28117138]
[1642686665294,0.60097553,42487.0,42485.0,0.21357884]
[1642686665295,0.12032434,42486.0,42485.0,0.21357884]
[1642686665493,0.10744467,42486.0,42485.0,0.21357884]
[1642686665693,0.10744467,42486.0,42485.0,0.79825208]
[1642686665898,0.10744467,42486.0,42485.0,1.23522532]
[1642686666097,0.00012033,42486.0,42485.0,0.94297174]
[1642686666297,0.00812033,42486.0,42485.0,0.95397174]
[1642686666496,0.00812033,42486.0,42485.0,0.96574174]
[1642686666697,0.00758505,42486.0,42485.0,0.50974324]
[1642686667332,0.00758505,42486.0,42485.0,0.07277]
[1642686667536,0.60138748,42488.0,42485.0,0.06177]
[1642686667537,0.60097553,42488.0,42485.0,0.06177]
[1642686667733,0.60138748,42488.0,42485.0,0.06177]
[1642686667934,0.60097553,42487.0,42485.0,0.01177]
[1642686668334,0.60097553,42487.0,42486.0,0.39937877]
[1642686669132,0.60097553,42487.0,42486.0,0.41114877]
[1642686669733,0.60097553,42487.0,42486.0,0.46114877]
[1642686670334,0.61397553,42487.0,42486.0,0.46914877]
[1642686670537,0.61397553,42487.0,42486.0,0.06977]
[1642686670736,0.013,42487.0,42486.0,0.06977]
[1642686670996,0.16003963,42487.0,42486.0,0.008]
[1642686671209,0.031138,42483.0,42475.0,0.2882]
[1642686671394,0.60099522,42479.0,42475.0,0.2882]
[1642686671592,0.78987135,42479.0,42476.0,0.0001719]
[1642686671794,0.60099522,42478.0,42476.0,0.0001719]
[1642686671994,1.44919594,42480.0,42476.0,0.0001719]
[1642686672197,0.60099522,42479.0,42474.0,0.00020628]
[1642686672391,0.003,42478.0,42476.0,0.033]
[1642686672793,0.003,42478.0,42477.0,0.70015471]
[1642686673597,0.60099522,42481.0,42477.0,0.70015471]
[1642686673793,0.6014071,42481.0,42477.0,0.70015471]
[1642686674003,0.6014071,42481.0,42480.0,0.73068725]
[1642686674400,0.6114071,42481.0,42480.0,0.43079039]
[1642686674955,0.01,42481.0,42480.0,0.63988615]
[1642686675147,0.01,42481.0,42480.0,0.70165615]
[1642686675548,0.60099522,42482.0,42480.0,0.70165615]
[1642686675749,0.64829522,42482.0,42480.0,0.65165615]
[1642686675949,0.64829522,42482.0,42481.0,8.595e-05]
[1642686676348,0.65829522,42482.0,42481.0,8.595e-05]
[1642686676953,0.65829522,42482.0,42481.0,0.01185595]
[1642686677752,0.64829522,42482.0,42481.0,8.595e-05]
[1642686677952,0.0473,42482.0,42481.0,8.595e-05]
[1642686678154,0.0473,42482.0,42479.0,0.00012033]
[1642686678390,0.60113997,42480.0,42479.0,0.00012033]
[1642686678989,0.71116109,42482.0,42479.0,0.00012033]
[1642686678990,0.60113997,42481.0,42479.0,0.00012033]
[1642686679390,0.60113997,42481.0,42480.0,0.46177]
[1642686679592,0.73229909,42483.0,42480.0,0.51177]
[1642686679593,0.63227797,42483.0,42480.0,0.51177]
[1642686679789,0.00032329,42482.0,42481.0,0.68399701]
[1642686679991,0.00032329,42482.0,42481.0,0.68408296]
[1642686680293,0.00032329,42482.0,42481.0,0.69208296]
[1642686680489,0.01232329,42482.0,42481.0,0.00808595]
[1642686680690,0.73347205,42482.0,42481.0,0.00808595]
[1642686680890,0.13233208,42482.0,42481.0,0.00808595]
[1642686681692,0.82149317,42482.0,42481.0,8.595e-05]
[1642686682144,0.0012118,42479.0,42478.0,0.00013752]
[1642686682544,0.0012118,42479.0,42474.0,0.00020628]
[1642686682849,0.60119609,42478.0,42474.0,0.00020628]
[1642686683046,0.80002047,42478.0,42474.0,0.00020628]
[1642686683252,0.60119609,42475.0,42474.0,0.00020628]
[1642686683643,0.72152817,42475.0,42474.0,0.00020628]
[1642686684046,0.72152817,42475.0,42471.0,0.00025785]
[1642686684443,0.60619609,42475.0,42474.0,0.003]
[1642686684845,0.60619609,42475.0,42474.0,0.00320628]
[1642686685644,0.60619609,42475.0,42474.0,0.00020628]
[1642686685645,0.60119609,42475.0,42474.0,0.00020628]
[1642686685891,0.60240073,42475.0,42474.0,0.00020628]
[1642686686097,0.60240073,42475.0,42472.0,0.00024066]
[1642686686291,0.60840073,42475.0,42472.0,0.00024066]
[1642686686591,0.60840073,42475.0,42471.0,0.0003552]
[1642686686792,0.60840073,42475.0,42471.0,0.00025785]
[1642686686992,0.60840073,42475.0,42472.0,0.00024066]
[1642686687192,0.60840073,42475.0,42472.0,9.735e-05]
[1642686687392,0.60119609,42474.0,42470.0,0.00247801]
[1642686688196,0.60119609,42472.0,42470.0,0.00247801]
[1642686688495,0.60119609,42472.0,42468.0,0.01177]
[1642686688496,0.70138698,42472.0,42468.0,0.01177]
[1642686688698,0.70138698,42472.0,42467.0,0.0010927]
[1642686688699,0.60245023,42470.0,42467.0,0.0010927]
[1642686688902,1.3,42467.0,42440.0,0.78078254]
[1642686689101,1.3,42467.0,42437.0,0.87096922]
[1642686689102,0.60124683,42458.0,42437.0,0.43500434]
[1642686689303,0.60124683,42458.0,42432.0,1.0]
[1642686689304,0.09863432,42440.0,42432.0,1.0]
[1642686689501,1.554,42441.0,42431.0,0.005]
[1642686689502,0.5732,42438.0,42431.0,0.005]
[1642686689757,0.5232,42432.0,42431.0,0.005]
[1642686689952,1.17174683,42432.0,42431.0,0.005]
[1642686690153,0.62543301,42437.0,42424.0,0.25927341]
[1642686690355,0.009,42432.0,42424.0,0.25927341]